fUST/lending_fUST_20240202
["ID","MTS","AMOUNT","RATE_DAILY","PERIOD"]
[313168185,1706862632504,-4033.1637396,0.00026988,2]
[313168186,1706862632513,-11052.48226444,0.00026989,2]
[313168187,1706862632522,-840.9,0.00026989,3]
[313168188,1706862632531,-700.75,0.00026989,3]
[313168189,1706862632540,-17812.73329545,0.0002699,7]
[313168190,1706862632551,-700.93102475,0.0002699,7]
[313168200,1706862641747,-16475.87484503,0.0002699,7]
[313168201,1706862641758,-2205.48200324,0.0002699,2]
[313168202,1706862641769,-155.4152307,0.00026998,2]
[313168203,1706862641780,-4049.19215978,0.00026999,2]
[313168257,1706862643598,-145.52415565,0.00026999,2]
[313168258,1706862643609,-1222.70831378,0.00027,7]
[313168278,1706862644320,-1622.11444346,0.00027,7]
[313168285,1706862646590,-486.63,0.0002699,3]
[313168286,1706862646601,-1013.37,0.00026998,2]
[313168287,1706862646613,-3.90536011,0.00026998,2]
[313168288,1706862646623,-4453.297476,0.00026998,2]
[313168289,1706862646633,-97594.65048317,0.00027,7]
[313168290,1706862646643,-1000.0,0.00027,27]
[313168291,1706862646653,-9145.55948231,0.00027047,4]
[313168292,1706862646664,-440.681576,0.00027047,2]
[313168293,1706862646674,-440.681576,0.00027047,2]
[313168294,1706862646684,-151.0,0.00027047,2]
[313168295,1706862646694,-3420.77435079,0.00027197,2]
[313168296,1706862646704,-596.4668107,0.00027296,2]
[313168297,1706862646713,-500.0,0.00027296,2]
[313168298,1706862646723,-500.0,0.00027296,2]
[313168299,1706862646735,-500.0,0.00027296,2]
[313168300,1706862646744,-500.0,0.00027296,2]
[313168301,1706862646754,-206.40595228,0.00027296,2]
[313168302,1706862646763,-500.0,0.00027296,2]
[313168303,1706862646773,-500.0,0.00027296,2]
[313168304,1706862646782,-500.0,0.00027296,2]
[313168305,1706862646791,-500.0,0.00027296,2]
[313168306,1706862646801,-500.0,0.00027296,2]
[313168307,1706862646811,-500.0,0.00027296,2]
[313168308,1706862646822,-500.0,0.00027296,2]
[313168309,1706862646831,-500.0,0.00027296,2]
[313168310,1706862646841,-500.0,0.00027296,2]
[313168311,1706862646851,-500.0,0.00027296,2]
[313168312,1706862646860,-292.30467779,0.00027296,2]
[313168313,1706862646870,-500.0,0.00027296,2]
[313168314,1706862646879,-500.0,0.00027296,2]
[313168315,1706862646889,-500.0,0.00027296,2]
[313168316,1706862646899,-500.0,0.00027296,2]
[313168317,1706862646908,-500.0,0.00027296,2]
[313168318,1706862646918,-500.0,0.00027296,2]
[313168319,1706862646928,-398.04397372,0.00027296,2]
[313168320,1706862646937,-500.0,0.00027296,2]
[313168321,1706862646946,-500.0,0.00027296,2]
[313168322,1706862646955,-500.0,0.00027296,2]
[313168323,1706862646964,-500.0,0.00027296,2]
[313168324,1706862646973,-346.59273457,0.00027296,2]
[313168325,1706862646982,-500.0,0.00027296,2]
[313168326,1706862646991,-500.0,0.00027296,2]
[313168327,1706862647000,-500.0,0.00027296,2]
[313168328,1706862647009,-500.0,0.00027296,2]
[313168329,1706862647018,-500.0,0.00027296,2]
[313168330,1706862647027,-500.0,0.00027296,2]
[313168331,1706862647036,-500.0,0.00027296,2]
[313168332,1706862647045,-500.0,0.00027296,2]
[313168333,1706862647054,-500.0,0.00027296,2]
[313168334,1706862647063,-500.0,0.00027296,2]
[313168335,1706862647073,-500.0,0.00027296,2]
[313168336,1706862647082,-500.0,0.00027296,2]
[313168337,1706862647091,-500.0,0.00027296,2]
[313168338,1706862647100,-500.0,0.00027296,2]
[313168339,1706862647110,-253.91808612,0.00027296,2]
[313168340,1706862647119,-500.0,0.00027296,2]
[313168341,1706862647128,-440.681576,0.00027296,2]
[313168342,1706862647137,-440.681576,0.00027296,2]
[313168343,1706862647147,-440.681576,0.00027296,2]
[313168344,1706862647156,-440.681576,0.00027296,2]
[313168345,1706862647165,-151.0,0.00027296,2]
[313168346,1706862647174,-151.0,0.00027296,2]
[313168347,1706862647184,-151.0,0.00027296,2]
[313168348,1706862647193,-193160.05916072,0.00027297,2]
[313168349,1706862647205,-709.46106144,0.00027297,2]
[313168356,1706862708500,150.0,0.00029,30]
[313168357,1706862755909,160.0,0.00029,30]
[313168365,1706862861297,913.0,0.00028757,61]
[313168366,1706862861780,913.0,0.00028747,61]
[313168367,1706862862190,913.0,0.00028737,61]
[313168376,1706863221455,639.0,0.0002865,61]
[313168377,1706863221897,639.0,0.0002864,61]
[313168378,1706863222748,639.0,0.0002863,61]
[313168386,1706863517140,3000.0,0.00029,30]
[313168387,1706863581390,447.0,0.00028696,61]
[313168388,1706863581827,447.0,0.00028686,61]
[313168389,1706863582291,447.0,0.00028676,61]
[313168390,1706863582407,3000.0,0.00029,30]
[313168434,1706863838726,-323.68814175,0.00022939,2]
[313168435,1706863838736,-814.22505744,0.00022939,2]
[313168437,1706863838748,-993.18020052,0.00022939,2]
[313168447,1706863838843,-1135.59381546,0.00022939,2]
[313168448,1706863838856,-768.08215658,0.00022939,2]
[313168449,1706863838866,-324.30378979,0.0002294,2]
[313168466,1706863842054,-509.25612575,0.0002294,2]
[313168467,1706863842067,-183.71544457,0.0002294,2]
[313168468,1706863842076,-589.56813586,0.0002297,2]
[313168469,1706863842085,-287.02105971,0.00022979,2]
[313168470,1706863842095,-483.22389126,0.00022979,2]
[313168471,1706863842104,-195.3478169,0.00022979,2]
[313168472,1706863842113,-166.666666,0.00023685,2]
[313168473,1706863842123,-534.61258296,0.00025275,2]
[313168474,1706863842136,-200.0,0.00025276,7]
[313168475,1706863842145,-166.666666,0.000253,2]
[313168476,1706863842154,-154.98450155,0.000261,2]
[313168477,1706863842163,-166.666666,0.00026914,2]
[313168478,1706863842175,-17760.37591689,0.000271,2]
[313168479,1706863842186,-2781.61392085,0.000271,2]
[313168480,1706863842198,-9259.58,0.000271,2]
[313168531,1706863843829,-921.79253314,0.000271,2]
[313168590,1706863941485,364.0,0.0002879,61]
[313168591,1706863941932,364.0,0.0002878,61]
[313168592,1706863942369,364.0,0.0002877,61]
[313168958,1706864301333,255.0,0.00028757,61]
[313168959,1706864301761,255.0,0.00028747,61]
[313168960,1706864302189,255.0,0.00028737,61]
[313168982,1706864661783,178.0,0.00028899,61]
[313168983,1706864662213,178.0,0.00028889,61]
[313168984,1706864662774,178.0,0.00028879,61]
[313169095,1706865044852,-509.54146053,0.00024903,2]
[313169116,1706865185311,150.5,0.00028757,61]
[313169117,1706865185763,150.5,0.00028747,61]
[313169118,1706865186212,150.5,0.00028737,61]
[313169160,1706865501362,150.5,0.0002849,61]
[313169161,1706865501824,150.5,0.0002848,61]
[313169162,1706865502335,150.5,0.0002847,61]
[313169164,1706865861258,150.5,0.00028674,61]
[313169165,1706865861703,198.1,0.00028664,61]
[313169240,1706866238149,-155.02170304,0.00024398,2]
[313169242,1706866238159,-1017.27536011,0.00024399,2]
[313169243,1706866238168,-160.58745628,0.000244,2]
[313169308,1706866243180,-796.57238891,0.000244,2]
[313169309,1706866243192,-396.85223137,0.000244,2]
[313169319,1706866248849,-579.46124427,0.000244,2]
[313169320,1706866248864,-3398.40592084,0.0002443,2]
[313169321,1706866248877,-1225.216551,0.0002443,2]
[313169326,1706866341435,679.0,0.0002879,61]
[313169327,1706866341870,679.0,0.0002878,61]
[313169328,1706866342340,679.0,0.0002877,61]
[313169329,1706866401126,945.0,0.0002879,61]
[313169330,1706866401572,945.0,0.0002878,61]
[313169331,1706866402020,945.0,0.0002877,61]
[313169337,1706866464715,-380.68468757,0.00023006,2]
[313169338,1706866464740,-155.02170304,0.00024388,4]
[313169339,1706866464762,-1933.47332083,0.00024429,2]
[313169340,1706866464785,-13194.20602496,0.0002443,2]
[313169341,1706866464808,-534.61258296,0.00025,2]
[313169342,1706866464831,-183.208202,0.00025026,2]
[313169343,1706866464868,-165.938904,0.00025094,2]
[313169344,1706866464892,-730.1807676,0.00025434,2]
[313169345,1706866464917,-8805.35967088,0.0002607,2]
[313169346,1706866464941,-241.31484076,0.000261,2]
[313169347,1706866464964,-5000.0,0.00026861,2]
[313169348,1706866464988,-200.0,0.00026872,15]
[313169349,1706866465018,-1336.89,0.0002709,3]
[313169350,1706866465078,-774.01805082,0.00027098,2]
[313169351,1706866465101,-155.40592865,0.00027098,2]
[313169352,1706866465124,-151.0,0.00027098,2]
[313169353,1706866465146,-1785.91754342,0.00027099,2]
[313169354,1706866465168,-48918.89643193,0.000271,2]
[313169355,1706866465191,-284.439248,0.000271,2]
[313169356,1706866465214,-3975.13505251,0.00027295,2]
[313169357,1706866465237,-426.52191671,0.00027295,2]
[313169358,1706866465259,-82130.47977784,0.00027335,2]
[313169359,1706866465281,-4128.10406896,0.00027395,2]
[313169360,1706866465304,-324.46583471,0.00027395,2]
[313169361,1706866465326,-4049.19215978,0.00027395,2]
[313169362,1706866465348,-4222.37439267,0.00027396,2]
[313169363,1706866465370,-488.04280479,0.00027397,2]
[313169364,1706866465391,-424.6352201,0.00027397,2]
[313169365,1706866465413,-1000.0,0.00027397,2]
[313169366,1706866465436,-349.07646109,0.00027397,2]
[313169367,1706866465458,-1250.98,0.00027397,2]
[313169368,1706866465480,-504.4633397,0.00027397,2]
[313169369,1706866465503,-500.0,0.00027397,2]
[313169370,1706866465527,-500.0,0.00027397,2]
[313169371,1706866465550,-202.55252808,0.00027397,2]
[313169372,1706866465572,-500.0,0.00027397,2]
[313169373,1706866465724,-500.0,0.00027397,2]
[313169374,1706866465746,-500.0,0.00027397,2]
[313169375,1706866465769,-500.0,0.00027397,2]
[313169376,1706866465793,-500.0,0.00027397,2]
[313169377,1706866465816,-500.0,0.00027397,2]
[313169378,1706866465839,-500.0,0.00027397,2]
[313169379,1706866465862,-500.0,0.00027397,2]
[313169380,1706866465884,-500.0,0.00027397,2]
[313169381,1706866465907,-500.0,0.00027397,2]
[313169382,1706866465932,-500.0,0.00027397,2]
[313169383,1706866465955,-308.477103,0.00027397,2]
[313169384,1706866465978,-500.0,0.00027397,2]
[313169385,1706866466001,-308.477103,0.00027397,2]
[313169386,1706866466023,-500.0,0.00027397,2]
[313169387,1706866466046,-500.0,0.00027397,2]
[313169388,1706866466067,-500.0,0.00027397,2]
[313169389,1706866466092,-500.0,0.00027397,2]
[313169390,1706866466114,-500.0,0.00027397,2]
[313169391,1706866466136,-155.0,0.00027397,2]
[313169392,1706866466157,-500.0,0.00027397,2]
[313169393,1706866466180,-500.0,0.00027397,2]
[313169394,1706866466202,-1098.88,0.00027397,2]
[313169395,1706866466225,-1000.0,0.00027397,2]
[313169396,1706866466247,-500.0,0.00027397,2]
[313169397,1706866466269,-500.0,0.00027397,2]
[313169398,1706866466292,-500.0,0.00027397,7]
[313169399,1706866466316,-500.0,0.00027397,2]
[313169400,1706866466338,-500.0,0.00027397,2]
[313169401,1706866466360,-500.0,0.00027397,2]
[313169402,1706866466382,-500.0,0.00027397,2]
[313169403,1706866466405,-500.0,0.00027397,2]
[313169404,1706866466427,-500.0,0.00027397,2]
[313169405,1706866466448,-515.72640571,0.00027397,2]
[313169406,1706866466471,-400.79906347,0.00027397,2]
[313169407,1706866466493,-500.0,0.00027397,2]
[313169408,1706866466516,-500.0,0.00027397,2]
[313169409,1706866466538,-406.93829842,0.00027397,2]
[313169410,1706866466562,-500.0,0.00027397,2]
[313169411,1706866466585,-500.0,0.00027397,2]
[313169412,1706866466607,-500.0,0.00027397,2]
[313169413,1706866466630,-500.0,0.00027397,2]
[313169414,1706866466652,-500.0,0.00027397,2]
[313169415,1706866466675,-500.0,0.00027397,2]
[313169416,1706866466698,-500.0,0.00027397,2]
[313169417,1706866466723,-506.50652892,0.00027397,2]
[313169418,1706866466746,-500.0,0.00027397,2]
[313169419,1706866466769,-500.0,0.00027397,2]
[313169420,1706866466793,-500.0,0.00027397,2]
[313169421,1706866466815,-618.54349295,0.00027397,2]
[313169422,1706866466837,-500.0,0.00027397,2]
[313169423,1706866466861,-500.0,0.00027397,2]
[313169424,1706866466882,-500.0,0.00027397,2]
[313169425,1706866466903,-500.0,0.00027397,2]
[313169426,1706866466926,-500.0,0.00027397,2]
[313169427,1706866466949,-500.0,0.00027397,2]
[313169428,1706866466971,-500.0,0.00027397,2]
[313169429,1706866466995,-500.0,0.00027397,2]
[313169430,1706866467018,-500.0,0.00027397,2]
[313169431,1706866467040,-500.0,0.00027397,2]
[313169432,1706866467064,-512.82,0.00027397,2]
[313169433,1706866467087,-500.0,0.00027397,2]
[313169434,1706866467110,-799.08,0.00027397,2]
[313169435,1706866467132,-500.0,0.00027397,2]
[313169436,1706866467155,-500.0,0.00027397,2]
[313169437,1706866467177,-500.0,0.00027397,2]
[313169438,1706866467200,-1255.02,0.00027397,2]
[313169439,1706866467222,-500.0,0.00027397,2]
[313169440,1706866467245,-500.0,0.00027397,2]
[313169441,1706866467268,-500.0,0.00027397,2]
[313169442,1706866467291,-500.0,0.00027397,2]
[313169443,1706866467313,-500.0,0.00027397,2]
[313169444,1706866467336,-231.01030234,0.00027397,2]
[313169445,1706866467360,-500.0,0.00027397,2]
[313169446,1706866467383,-8338.6,0.00027397,2]
[313169447,1706866467406,-500.0,0.00027397,2]
[313169448,1706866467428,-500.0,0.00027397,2]
[313169449,1706866467450,-500.0,0.00027397,2]
[313169450,1706866467497,-300.0,0.00027397,2]
[313169451,1706866467589,-561.12,0.00027397,2]
[313169452,1706866467671,-5407.58,0.00027397,2]
[313169453,1706866467693,-500.0,0.00027397,2]
[313169454,1706866467716,-612.217431,0.00027397,2]
[313169455,1706866467738,-500.0,0.00027397,2]
[313169456,1706866467761,-3953.03,0.00027397,2]
[313169457,1706866467782,-2205.48200324,0.000274,2]
[313169458,1706866467804,-9145.55948231,0.00027435,4]
[313169459,1706866467827,-500.0,0.00027534,2]
[313169460,1706866467848,-164.659351,0.00027561,2]
[313169461,1706866467871,-214.023404,0.00027561,2]
[313169462,1706866467893,-500.0,0.0002757,2]
[313169463,1706866467915,-500.0,0.0002757,2]
[313169464,1706866467939,-308.477103,0.00027571,2]
[313169465,1706866467962,-308.477103,0.00027571,2]
[313169466,1706866467983,-224.199,0.00027638,4]
[313169467,1706866468004,-224.199,0.00027638,4]
[313169468,1706866468027,-224.199,0.00027638,4]
[313169469,1706866468048,-224.199,0.00027638,4]
[313169470,1706866468154,-224.2,0.00027638,4]
[313169471,1706866468176,-150.0,0.0002767,2]
[313169472,1706866468198,-500.0,0.0002767,2]
[313169473,1706866468220,-1000.0,0.00027671,2]
[313169474,1706866468242,-1250.98,0.00027671,2]
[313169475,1706866468264,-500.0,0.00027671,2]
[313169476,1706866468286,-427.51,0.00027671,2]
[313169477,1706866468309,-500.0,0.00027671,2]
[313169478,1706866468331,-308.477103,0.00027671,2]
[313169479,1706866468353,-308.477103,0.00027671,2]
[313169480,1706866468375,-500.0,0.00027671,2]
[313169481,1706866468397,-500.0,0.00027671,2]
[313169482,1706866468419,-186.8278718,0.00027671,2]
[313169483,1706866468442,-500.0,0.00027671,2]
[313169484,1706866468465,-1098.88,0.00027671,2]
[313169485,1706866468488,-1000.0,0.00027671,2]
[313169486,1706866468511,-248.96042932,0.00027671,2]
[313169487,1706866468534,-500.0,0.00027671,7]
[313169488,1706866468556,-500.0,0.00027671,2]
[313169489,1706866468578,-500.0,0.00027671,2]
[313169490,1706866468601,-500.0,0.00027671,2]
[313169491,1706866468624,-500.0,0.00027671,2]
[313169492,1706866468649,-500.0,0.00027671,2]
[313169493,1706866468673,-500.0,0.00027671,2]
[313169494,1706866468697,-500.0,0.00027671,2]
[313169495,1706866468721,-500.0,0.00027671,2]
[313169496,1706866468745,-500.0,0.00027671,2]
[313169497,1706866468768,-500.0,0.00027671,2]
[313169498,1706866468792,-500.0,0.00027671,2]
[313169499,1706866468816,-351.9,0.00027671,2]
[313169500,1706866468838,-500.0,0.00027671,2]
[313169501,1706866468861,-500.0,0.00027671,2]
[313169502,1706866468885,-500.0,0.00027671,2]
[313169503,1706866468912,-500.0,0.00027671,2]
[313169504,1706866468937,-627.95677877,0.00027671,2]
[313169505,1706866468962,-500.0,0.00027671,2]
[313169506,1706866468987,-500.0,0.00027671,2]
[313169507,1706866469014,-512.82,0.00027671,2]
[313169508,1706866469039,-799.08,0.00027671,2]
[313169509,1706866469061,-500.0,0.00027671,2]
[313169510,1706866469084,-1255.02,0.00027671,2]
[313169511,1706866469105,-500.0,0.00027671,2]
[313169512,1706866469132,-500.0,0.00027671,2]
[313169513,1706866469156,-500.0,0.00027671,2]
[313169514,1706866469181,-8338.6,0.00027671,2]
[313169515,1706866469205,-500.0,0.00027671,2]
[313169516,1706866469226,-500.0,0.00027671,2]
[313169517,1706866469248,-361.5115118,0.00027671,2]
[313169518,1706866469270,-561.12,0.00027671,2]
[313169519,1706866469301,-5407.58,0.00027671,2]
[313169520,1706866469330,-319.76099632,0.00027671,2]
[313169521,1706866469360,-626.12892872,0.00027671,2]
[313169522,1706866469386,-3953.03,0.00027671,2]
[313169523,1706866469413,-1781.87998125,0.00027798,2]
[313169524,1706866469439,-5218.09776125,0.00027798,2]
[313169525,1706866469466,-308.477103,0.00027798,2]
[313169526,1706866469494,-308.477103,0.00027798,2]
[313169527,1706866469520,-191079.63165398,0.000278,2]
[313169528,1706866469549,-500.0,0.00027808,2]
[313169529,1706866469573,-500.0,0.00027844,2]
[313169530,1706866469599,-6748.71136985,0.00027855,2]
[313169531,1706866469626,-155.0,0.00027898,2]
[313169532,1706866469651,-500.0,0.00027899,2]
[313169533,1706866469679,-500.0,0.00027899,2]
[313169534,1706866469703,-500.0,0.00027899,2]
[313169535,1706866469744,-310.25607531,0.00027899,2]
[313169536,1706866469774,-305.99089846,0.00027899,2]
[313169537,1706866469800,-27227.60573697,0.000279,2]
[313169538,1706866469830,-3078.69691572,0.000279,2]
[313169539,1706866469861,-256.806101,0.00027906,2]
[313169540,1706866469890,-166.40017,0.00027906,2]
[313169541,1706866469922,-500.0,0.00027944,2]
[313169542,1706866469949,-1024.55990411,0.00027945,2]
[313169543,1706866469978,-1250.98,0.00027945,2]
[313169544,1706866470006,-500.0,0.00027945,2]
[313169545,1706866470035,-500.0,0.00027945,2]
[313169546,1706866470068,-308.477103,0.00027945,2]
[313169547,1706866470096,-308.477103,0.00027945,2]
[313169548,1706866470126,-308.477103,0.00027945,2]
[313169549,1706866470153,-308.477103,0.00027945,2]
[313169550,1706866470180,-500.0,0.00027945,2]
[313169551,1706866470205,-500.0,0.00027945,2]
[313169552,1706866470230,-294.82483591,0.00027945,2]
[313169553,1706866470256,-1098.88,0.00027945,2]
[313169554,1706866470284,-1000.0,0.00027945,2]
[313169555,1706866470312,-500.0,0.00027945,7]
[313169556,1706866470338,-500.0,0.00027945,2]
[313169557,1706866470366,-500.0,0.00027945,2]
[313169558,1706866470390,-268.81092134,0.00027945,2]
[313169559,1706866470414,-500.0,0.00027945,2]
[313169560,1706866470440,-500.0,0.00027945,2]
[313169561,1706866470466,-500.0,0.00027945,2]
[313169562,1706866470493,-500.0,0.00027945,2]
[313169563,1706866470519,-500.0,0.00027945,2]
[313169564,1706866470546,-500.0,0.00027945,2]
[313169565,1706866470572,-500.0,0.00027945,2]
[313169566,1706866470599,-500.0,0.00027945,2]
[313169567,1706866470625,-500.0,0.00027945,2]
[313169568,1706866470651,-445.15310604,0.00027945,2]
[313169569,1706866470678,-500.0,0.00027945,2]
[313169570,1706866470838,-500.0,0.00027945,2]
[313169571,1706866470862,-500.0,0.00027945,2]
[313169572,1706866470887,-500.0,0.00027945,2]
[313169573,1706866470912,-512.82,0.00027945,2]
[313169574,1706866470941,-799.08,0.00027945,2]
[313169575,1706866470965,-500.0,0.00027945,2]
[313169576,1706866470988,-1255.02,0.00027945,2]
[313169577,1706866471011,-500.0,0.00027945,2]
[313169578,1706866471034,-500.0,0.00027945,2]
[313169579,1706866471058,-500.0,0.00027945,2]
[313169580,1706866471082,-8338.6,0.00027945,2]
[313169581,1706866471107,-500.0,0.00027945,2]
[313169582,1706866471133,-500.0,0.00027945,2]
[313169583,1706866471156,-561.12,0.00027945,2]
[313169584,1706866471180,-5407.58,0.00027945,2]
[313169585,1706866471205,-3953.03,0.00027945,2]
[313169586,1706866471228,-309.95095683,0.00027998,2]
[313169587,1706866471252,-500.0,0.00027998,2]
[313169588,1706866471275,-8744.25651042,0.00027999,2]
[313169589,1706866471298,-515.72374782,0.00027999,2]
[313169590,1706866471320,-378.66825425,0.00027999,2]
[313169591,1706866471343,-183.01104612,0.00027999,2]
[313169592,1706866471366,-500.0,0.00027999,2]
[313169593,1706866471389,-400.47300729,0.00027999,2]
[313169594,1706866471412,-593.21299461,0.00027999,2]
[313169595,1706866471435,-500.0,0.00027999,2]
[313169596,1706866471458,-370.80208604,0.00027999,2]
[313169597,1706866471481,-593.21299461,0.00027999,2]
[313169598,1706866471504,-500.0,0.00027999,2]
[313169599,1706866471527,-593.21299461,0.00027999,2]
[313169600,1706866471549,-593.21299461,0.00027999,2]
[313169601,1706866471572,-593.21299461,0.00027999,2]
[313169602,1706866471593,-593.21299461,0.00027999,2]
[313169603,1706866471616,-513.443477,0.00027999,2]
[313169604,1706866471638,-593.21299461,0.00027999,2]
[313169605,1706866471660,-593.21299461,0.00027999,2]
[313169606,1706866471682,-593.21299461,0.00027999,2]
[313169607,1706866471705,-593.21299461,0.00027999,2]
[313169608,1706866471728,-593.21299461,0.00027999,2]
[313169609,1706866471750,-593.21299461,0.00027999,2]
[313169610,1706866471772,-593.21299461,0.00027999,2]
[313169611,1706866471794,-593.21299461,0.00027999,2]
[313169612,1706866471816,-593.21299461,0.00027999,2]
[313169613,1706866471838,-593.21299461,0.00027999,2]
[313169614,1706866471861,-593.21299461,0.00027999,2]
[313169615,1706866471883,-593.21299461,0.00027999,2]
[313169616,1706866471906,-593.21299461,0.00027999,2]
[313169617,1706866471929,-556.13718244,0.00027999,2]
[313169618,1706866471951,-556.13718244,0.00027999,2]
[313169619,1706866471973,-556.13718244,0.00027999,2]
[313169620,1706866471997,-556.13718244,0.00027999,2]
[313169621,1706866472021,-556.13718244,0.00027999,2]
[313169622,1706866472043,-556.13718244,0.00027999,2]
[313169623,1706866472066,-556.13718244,0.00027999,2]
[313169624,1706866472089,-556.13718244,0.00027999,2]
[313169625,1706866472113,-308.477103,0.00027999,2]
[313169626,1706866472136,-308.477103,0.00027999,2]
[313169627,1706866472159,-500.0,0.00027999,2]
[313169628,1706866472183,-500.0,0.00027999,2]
[313169629,1706866472206,-500.0,0.00027999,2]
[313169630,1706866472230,-500.0,0.00027999,2]
[313169631,1706866472254,-500.0,0.00027999,2]
[313169632,1706866472277,-500.0,0.00027999,2]
[313169633,1706866472300,-500.0,0.00027999,2]
[313169634,1706866472323,-500.0,0.00027999,2]
[313169635,1706866472347,-500.0,0.00027999,2]
[313169636,1706866472369,-500.0,0.00027999,2]
[313169637,1706866472393,-365.1046902,0.00027999,2]
[313169638,1706866472420,-383.96898435,0.00028,3]
[313169639,1706866472442,-32072.65074252,0.00028,2]
[313169640,1706866472466,-343775.73752241,0.00028,20]
[313169643,1706866516649,-485.28509371,0.00027397,2]
[313169644,1706866516673,-1094.61,0.00027397,2]
[313169645,1706866516698,-500.0,0.00027397,2]
[313169646,1706866516722,-500.0,0.00027397,2]
[313169647,1706866516746,-500.0,0.00027397,2]
[313169648,1706866516769,-500.0,0.00027397,2]
[313169649,1706866516792,-1094.61,0.00027671,2]
[313169650,1706866516816,-500.0,0.00027671,2]
[313169651,1706866516840,-262.56752119,0.00027671,2]
[313169652,1706866516866,-390.70353521,0.00027671,2]
[313169653,1706866516889,-500.0,0.00027671,2]
[313169654,1706866516911,-1094.61,0.00027945,2]
[313169655,1706866516938,-500.0,0.00027945,2]
[313169656,1706866516963,-500.0,0.00027945,2]
[313169657,1706866516989,-1114.08,0.0002799,3]
[313169658,1706866517013,-928.4,0.0002799,3]
[313169659,1706866517037,-534.61258296,0.00027999,2]
[313169660,1706866517062,-1933.47332083,0.00027999,2]
[313169661,1706866517086,-347067.0479461,0.00028,20]
[313169740,1706867432281,-440.18397126,0.00027396,2]
[313169757,1706867438375,-1493.28934957,0.00027396,2]
[313169758,1706867438385,-500.0,0.00027397,2]
[313169759,1706867438395,-315.26032564,0.00027397,2]
[313169760,1706867438406,-184.73967436,0.00027397,2]
[313169761,1706867438415,-500.0,0.00027397,2]
[313169762,1706867438424,-500.0,0.00027397,2]
[313169763,1706867438435,-961.52,0.00027397,2]
[313169764,1706867438444,-500.0,0.00027397,7]
[313169765,1706867438453,-500.0,0.00027397,2]
[313169766,1706867438462,-500.0,0.00027397,2]
[313169767,1706867438471,-155.0,0.00027397,2]
[313169768,1706867438480,-2316.3317054,0.000275,4]
[313169902,1706867451295,-683.6682946,0.000275,4]
[313169903,1706867451305,-500.0,0.00027669,2]
[313169904,1706867451314,-500.0,0.00027669,2]
[313169905,1706867451323,-500.0,0.00027669,2]
[313169906,1706867451332,-500.0,0.00027669,2]
[313169907,1706867451341,-500.0,0.00027669,2]
[313169908,1706867451351,-500.0,0.00027669,2]
[313169909,1706867451360,-500.0,0.00027669,2]
[313169910,1706867451369,-500.0,0.00027669,2]
[313169911,1706867451378,-500.0,0.00027669,2]
[313169912,1706867451388,-500.0,0.00027669,2]
[313169913,1706867451397,-699.2,0.00027669,2]
[313169914,1706867451406,-1098.15,0.00027669,2]
[313169915,1706867451415,-500.0,0.00027669,2]
[313169916,1706867451424,-500.0,0.00027669,2]
[313169917,1706867451433,-500.0,0.00027669,2]
[313169918,1706867451442,-7296.27,0.00027669,2]
[313169919,1706867451452,-500.0,0.00027669,2]
[313169920,1706867451461,-4731.63,0.00027669,2]